[Event "AI Cup Div-3 2023"]
[Site "Online"]
[Date "2023.09.27"]
[Round "56.2"]
[White "Durarbayli, Vasif"]
[Black "Robson, Ray"]
[Result "0-1"]
[Annotator "TA"]
[ECO "C54"]
[WhiteElo "2625"]
[BlackElo "2699"]
[PlyCount "70"]
[EventDate "2023.09.18"]
[EventType "k.o."]
[EventCountry "NET"]
[SourceTitle "playchess.com"]
[Source "ChessBase"]
[SourceQuality "1"]
[TimeControl "900+3"]

{[%evp 12,70,26,12,23,13,18,19,27,25,30,0,14,0,0,0,0,-22,-13,-20,-21,-43,-24,-44,-24,-18,-25,-25,-21,-27,-10,-36,-36,-43,-39,-38,-39,-85,-89,-136,-52,-110,-108,-108,-83,-118,-100,-70,-20,-11,-18,-18,-17,-16,-15,-32,-28,-29978,-29980,-29978,-29979]} 1. e4 {[%emt 0:00:07]} e5 {[%emt 0:00:08]} 2. Nf3 {[%emt 0:00:00]} Nc6 {[%emt 0:00:02]} 3. Bc4 {[%emt 0:00:00]} Nf6 {[%emt 0:00:02]} 4. d3 {[%emt 0:00:01]} Bc5 {[%emt 0:00:02]} 5. O-O {[%emt 0:00:07]} d6 {[%emt 0:00:14]} 6. c3 {[%emt 0:00:04]} h6 {[%emt 0:00:15]} 7. Re1 {[%emt 0:00:20]} (7. b4 $5 Bb6 $8 8. Nbd2 $11) 7... O-O {[%emt 0:00:03] C54: Giuoco Piano: 4 c3 Nf6, main lines with 5 d4 and 5 d3.} 8. Nbd2 {[%emt 0:00:22]} (8. b4 $5 Bb6 $8 9. a4 $11) 8... a6 {[%emt 0:00:36]} 9. a4 {[%emt 0:00:07]} Re8 {[%emt 0:00:06] The position is equal.} 10. b4 {[%emt 0:00:18][%cal Bb2b4,Bb4b5][%mdl 32]} Ba7 {[%emt 0:00:05] [#]} 11. Bb2 $146 {[%emt 0:01:19]} ({Predecessor:} 11. h3 Be6 12. Bxe6 Rxe6 13. Qc2 Qd7 14. Nc4 Ree8 15. b5 axb5 16. axb5 Ne7 17. Rb1 {1-0 Ganguly,S (2635)-Yilmaz,M (2630) Chess24 Banter Blitz Cup Qual-H 2020 (1.3)}) 11... Be6 {[%emt 0:00:58]} 12. b5 {[%emt 0:00:04]} Bxc4 {[%emt 0:01:03]} 13. Nxc4 {[%emt 0:01:18]} Ne7 {[%emt 0:00:03]} 14. Qc2 {[%emt 0:01:40]} Ng6 {[%emt 0:00:20]} 15. bxa6 {[%emt 0:00:58]} bxa6 {[%emt 0:00:04]} 16. Ne3 {[%emt 0:01:47]} Qd7 {[%emt 0:00:59]} 17. c4 {[%emt 0:00:17]} Ng4 {[%emt 0:00:51]} 18. d4 {[%emt 0:01:05]} Nxe3 {[%emt 0:00:52]} (18... exd4 {with more complications.} 19. Bxd4 Nxe3 20. Rxe3 Nh4) 19. fxe3 {[%emt 0:00:02]} Rab8 {[%emt 0:00:23]} 20. Kh1 {[%emt 0:00:45]} Rb4 {[%emt 0:01:22]} 21. a5 {[%emt 0:00:25]} Reb8 {[%emt 0:00:23]} 22. Ba3 {[%emt 0:00:22]} Rb3 {[%emt 0:01:28]} 23. Nd2 {[%emt 0:00:19]} R3b7 {[%emt 0:00:04]} 24. Qc3 {[%emt 0:01:25]} (24. d5 $15 {deserves consideration.}) 24... Qg4 {[%emt 0:02:06]} 25. c5 {[%emt 0:00:06]} (25. d5 $142) 25... dxc5 {[%emt 0:00:22]} ({And not} 25... Nh4 26. Rg1 $15) ({Better is} 25... exd4 $17 26. exd4 dxc5) 26. dxc5 {[%emt 0:00:42]} ({White should try} 26. d5 $1 $15) 26... Rb5 $40 {[%emt 0:00:20][%mdl 128] Black has strong attack.} 27. h3 {[%emt 0:00:46]} Qe6 {[%emt 0:00:06] Black is more active.} 28. Rac1 {[%emt 0:00:09]} Ne7 {[%emt 0:00:42]} 29. c6 {[%emt 0:00:01] [#]} Rb3 {[%emt 0:01:13]} 30. Nxb3 $11 {[%emt 0:00:12]} Rxb3 {[%emt 0:00:00]} 31. Qa1 {[%emt 0:00:50] Black must now prevent Bxe7.} Bxe3 {[%emt 0:00:02] And now ...Bd4 would win.} 32. Rc2 $1 {[%emt 0:00:28]} Nxc6 {[%emt 0:00:21] next ...Nd4 is good for Black.} 33. Qa2 {[%emt 0:00:08][%cal Oc2c6] Hoping for Rxc6! White is weak on the dark squares} Bf4 {[%emt 0:00:16]} 34. Rxc6 $4 {[%emt 0:00:05][%mdl 8192] [#]} Rxh3+ {[%emt 0:00:02][%mdl 64] Discovered Attack} 35. gxh3 {[%emt 0:00:00]} Qxa2 {[%emt 0:00:03] Weighted Error Value: White=0.28 (precise) /Black=0.10 (very precise)} 0-1

[Event "AI Cup Div-3 2023"]
[Site "Online"]
[Date "2023.09.27"]
[Round "56.2"]
[White "Demchenko, Anton"]
[Black "Sevian, Samuel"]
[Result "0-1"]
[Annotator "TA"]
[ECO "C54"]
[WhiteElo "2608"]
[BlackElo "2698"]
[PlyCount "136"]
[EventDate "2023.09.18"]
[EventType "k.o."]
[EventCountry "NET"]
[SourceTitle "playchess.com"]
[Source "ChessBase"]
[SourceQuality "1"]
[TimeControl "900+3"]

{[%evp 13,136,10,6,15,15,0,26,16,26,-26,0,0,0,0,0,8,20,0,0,0,39,0,0,0,14,-10,-14,-41,0,-12,0,0,0,-32,27,0,8,8,8,17,14,-40,0,-39,26,-5,32,-59,37,-10,39,-15,0,-39,-29,-119,-108,-225,-229,-229,-220,-219,-225,-208,-202,-226,-218,-216,-214,-214,-214,-340,-340,-346,-328,-393,-407,-355,-303,-294,-268,-657,-635,-715,-669,-1262,-1270,-1259,-1256,-1183,-1127,-1154,-1114,-1429,-1358,-1819,-4373,-4814,-4759,-5044,-4133,-29972,-7112,-29978,-29979,-29979,-29979,-29981,-29981,-29982,-29982,-29984,-29984,-29984,-29985,-29986,-29987,-29987,-29987,-29987,-29988,-29989,-29990,-29990,-29991]} 1. e4 {[%emt 0:00:03]} e5 {[%emt 0:00:19]} 2. Nf3 {[%emt 0:00:02]} Nc6 {[%emt 0:00:01]} 3. Bc4 {[%emt 0:00:02]} Bc5 {[%emt 0:00:03]} 4. d3 {[%emt 0:00:01]} Nf6 {[%emt 0:00:11]} 5. Bg5 {[%emt 0:00:03]} d6 {[%emt 0:00:14]} 6. c3 {[%emt 0:00:08]} h6 {[%emt 0:00:03]} 7. Bh4 {[%emt 0:00:02]} a6 {[%emt 0:00:23]} 8. Nbd2 {[%emt 0:00:03] C54: Giuoco Piano: 4 c3 Nf6, main lines with 5 d4 and 5 d3.} Ba7 {[%emt 0:00:01]} 9. a4 {[%emt 0:00:12] [#]} a5 $1 $146 {[%emt 0:00:03][%mdl 8] A top novelty.} (9... g5 $5 {[%cal Rg5h4]} 10. Bg3 O-O $11) ({Predecessor:} 9... Qe7 10. O-O g5 11. Bg3 Nd7 12. b4 Nf8 13. b5 Nd8 14. d4 h5 15. h3 Ng6 {0-1 So,W (2753)-Gukesh,D (2758) Armageddon Grand Final W blitz 2023 (1.2)}) 10. Qe2 {[%emt 0:00:24] White has an edge.} Bd7 {[%emt 0:00:04]} 11. Bb3 {[%emt 0:00:17]} (11. Nf1 $142) 11... Be6 {[%emt 0:00:48]} 12. Nc4 {[%emt 0:01:26]} Rg8 {[%emt 0:01:19]} 13. O-O-O {[%emt 0:00:21]} g5 {[%emt 0:00:44]} 14. Bg3 {[%emt 0:00:03]} g4 {[%emt 0:01:16]} 15. Nh4 {[%emt 0:02:03]} Nh5 $1 {[%emt 0:00:02]} 16. Kb1 {[%emt 0:00:58]} Qf6 {[%emt 0:00:34] Prevents Nf5} 17. Qc2 {[%emt 0:00:16]} O-O-O {[%emt 0:02:12]} 18. Ne3 {[%emt 0:00:05]} Ne7 {[%emt 0:00:01]} 19. Rhe1 {[%emt 0:00:59]} Kb8 {[%emt 0:00:11]} 20. Rd2 {[%emt 0:00:38]} Rg5 {[%emt 0:01:29]} 21. Qd1 {[%emt 0:00:27]} Nxg3 {[%emt 0:00:27]} 22. hxg3 {[%emt 0:00:27]} h5 {[%emt 0:00:23]} 23. Bc4 {[%emt 0:01:54]} d5 {[%emt 0:01:42]} (23... Bxe3 $15 24. fxe3 Rgg8) 24. exd5 {[%emt 0:00:05]} (24. Nxd5 {with more complications.} Nxd5 25. exd5 Bxd5 26. Bxd5 Rxd5 27. f4) 24... Nxd5 {[%emt 0:00:01]} 25. Nxd5 {[%emt 0:01:07]} Bxd5 {[%emt 0:00:02]} 26. Bxd5 {[%emt 0:00:06]} Rxd5 {[%emt 0:00:00]} 27. Qe2 {[%emt 0:00:03]} (27. f4 $11 gxf3 28. Nxf3) 27... Bb6 {[%emt 0:00:14]} 28. Qe4 {[%emt 0:00:03]} Rd8 {[%emt 0:00:22]} (28... Bxf2 $2 29. Rf1 (29. Qxd5 $2 Bxe1 30. Rd1 Bxg3 $19) 29... Qd8 30. Rdxf2 $18) (28... c6 $15) 29. Kc2 {[%emt 0:00:09]} (29. f4 $5 {[%cal Rf4g5]} gxf3 30. Nxf3 $14) 29... Qe6 {[%emt 0:00:06]} (29... Bxf2 $2 30. Rf1 $18) 30. b3 {[%emt 0:00:18]} ({White should try} 30. f4 $14 gxf3 31. Nxf3 Rxg3 32. Qxe5) 30... Qf6 {[%emt 0:00:56]} ({Black should play} 30... f6 $15) 31. Ree2 {[%emt 0:00:09]} (31. f4 $14 gxf3 32. Nxf3 Rxg3 33. Qxe5) 31... Rd6 {[%emt 0:00:01]} (31... Qe7 $11) 32. Kb2 {[%emt 0:00:59]} (32. f4 $1 $14 exf4 33. Qxf4) 32... Ka7 {[%emt 0:00:04]} 33. Rc2 {[%emt 0:00:11]} Qd8 {[%emt 0:00:06]} 34. Nf5 {[%emt 0:00:54] Black keeps a firm grip on the game.} (34. Rcd2 $11) 34... Rxd3 $17 {[%emt 0:00:02]} 35. Nd4 {[%emt 0:00:02] [#]} exd4 $1 $19 {[%emt 0:00:46]} 36. Qxd3 {[%emt 0:00:15] [#]} dxc3+ $1 {[%emt 0:00:01][%mdl 64] Discovered Attack} 37. Rxc3 {[%emt 0:00:01] [#]} (37. Qxc3 $2 {perishes.} Bd4 38. Ka2 Bxc3 $19) 37... Rd5 {[%emt 0:00:01]} 38. Qc4 {[%emt 0:00:57]} Bd4 {[%emt 0:00:06]} 39. Rec2 {[%emt 0:00:02]} c6 {[%emt 0:00:05] ...b5 would be deadly. White is weak on the dark squares} ({Weaker is} 39... Bxc3+ 40. Qxc3 Kb8 41. Re2) 40. Ka2 {[%emt 0:00:06]} Bxc3 {[%emt 0:00:01]} 41. Qxc3 {[%emt 0:00:00][%mdl 4096] Endgame KQR-KQR} Qe7 {[%emt 0:00:16]} 42. f3 {[%emt 0:00:14]} (42. Qc4 $142) 42... Qe5 {[%emt 0:00:06]} 43. Qxe5 {[%emt 0:00:30]} Rxe5 {[%emt 0:00:00] KR-KR} 44. Kb2 {[%emt 0:00:01]} Kb6 {[%emt 0:00:06]} 45. Rf2 {[%emt 0:00:05]} f5 {[%emt 0:00:01]} 46. Kc3 {[%emt 0:00:02]} Kc5 {[%emt 0:00:01] Strongly threatening ...Re3+.} 47. Kd3 {[%emt 0:00:01] Prevents Re3+} (47. Rc2) 47... Kb4 {[%emt 0:00:01]} 48. Kc2 {[%emt 0:00:04]} Ka3 {[%emt 0:00:06]} 49. fxg4 {[%emt 0:00:03]} hxg4 {[%emt 0:00:02]} 50. Rf1 {[%emt 0:00:00]} Re2+ {[%emt 0:00:03]} 51. Kc3 {[%emt 0:00:02]} Re3+ {[%emt 0:00:01]} 52. Kc4 {[%emt 0:00:06]} Rxg3 {[%emt 0:00:03]} 53. Rxf5 {[%emt 0:00:00]} b6 {[%emt 0:00:23]} 54. Rf6 {[%emt 0:00:05]} Rxg2 {[%emt 0:00:01]} 55. Kd3 {[%emt 0:00:04]} Rg3+ {[%emt 0:00:02]} 56. Kc4 {[%emt 0:00:04]} Rxb3 {[%emt 0:00:02]} 57. Rxc6 {[%emt 0:00:00]} Kxa4 {[%emt 0:00:00]} (57... g3 $142 58. Kd5 Kxa4 59. Rg6 b5 60. Re6 g2 61. Re1 Rg3 62. Ra1+ Kb3 63. Rg1 b4 64. Ke5 Kc2 65. Kf4 Rg7 66. Kf5 b3 67. Kf6 Rg3 68. Kf5 b2 69. Kf4 b1=Q {[%mdl 64] Promotion} 70. Rxb1 Kxb1 71. Kxg3 g1=Q+ 72. Kf4 a4 73. Kf3 a3 74. Ke4 a2 75. Kf5 a1=Q 76. Ke6 Qg6+ 77. Kd7 Qa7+ 78. Kd8 Qg8#) 58. Rg6 {[%emt 0:00:02]} b5+ {[%emt 0:00:01][%cal Bb6b5,Bb5b4,Bb4b3,Bb3b2][%mdl 32] Black mates.} 59. Kc5 {[%emt 0:00:01]} g3 {[%emt 0:00:00]} 60. Kb6 {[%emt 0:00:03]} Rf3 {[%emt 0:00:03]} 61. Rg4+ {[%emt 0:00:05]} b4 {[%emt 0:00:01]} 62. Rg5 {[%emt 0:00:01]} Ka3 {[%emt 0:00:02]} 63. Rxa5+ {[%emt 0:00:03]} Kb2 {[%emt 0:00:00]} 64. Rg5 {[%emt 0:00:03]} b3 {[%emt 0:00:01]} 65. Kb5 {[%emt 0:00:00]} Kc1 {[%emt 0:00:02]} 66. Rc5+ {[%emt 0:00:02]} Kd2 {[%emt 0:00:01]} 67. Ka4 {[%emt 0:00:04]} b2 {[%emt 0:00:01]} 68. Rb5 {[%emt 0:00:01]} Kc2 {[%emt 0:00:00] Weighted Error Value: White=0.81/Black=0.24 (precise)} 0-1

[Event "AI Cup Div-3 2023"]
[Site "Online"]
[Date "2023.09.28"]
[Round "57.1"]
[White "Robson, Ray"]
[Black "Sevian, Samuel"]
[Result "0-1"]
[Annotator "TA"]
[ECO "C60"]
[WhiteElo "2699"]
[BlackElo "2698"]
[PlyCount "80"]
[EventDate "2023.09.18"]
[EventType "k.o."]
[EventCountry "NET"]
[SourceTitle "playchess.com"]
[Source "ChessBase"]
[SourceQuality "1"]
[TimeControl "900+3"]

{[%evp 18,80,37,32,55,52,70,70,78,37,41,36,72,54,91,111,89,49,59,60,54,22,21,14,8,11,34,8,37,0,11,18,24,-7,12,-122,-114,-142,-98,-89,-66,-208,-104,-90,0,-147,-158,-134,-141,-341,-305,-2210,-2176,-29980,-29981,-12118,-1180,-2696,-5710,-29982,-29979,-29983,-29984,-29984,-29979]} 1. e4 {[%emt 0:00:06]} e5 {[%emt 0:00:23]} 2. Nf3 {[%emt 0:00:07]} Nc6 {[%emt 0:00:01]} 3. Bb5 {[%emt 0:00:05]} a6 {[%emt 0:00:02]} 4. Ba4 {[%emt 0:00:04]} Nf6 {[%emt 0:00:01]} 5. O-O {[%emt 0:00:09]} d6 {[%emt 0:00:01]} 6. Re1 {[%emt 0:00:15]} Bd7 {[%emt 0:00:53]} 7. c3 {[%emt 0:00:19]} g6 {[%emt 0:00:01]} 8. d4 {[%emt 0:00:06]} Bg7 {[%emt 0:00:01]} 9. Nbd2 {[%emt 0:01:03] 9.h3 injects fresh life into this line.} O-O {[%emt 0:00:03]} 10. h3 {[%emt 0:00:13]} Qe8 {[%emt 0:01:30][%cal Oc6d4] C60: Ruy Lopez: Unusual Black 3rd moves and 3...g6.} 11. Bc2 {[%emt 0:00:34]} h6 $5 {[%emt 0:00:45][%mdl 4] Exploring less charted territory.} 12. Nf1 {[%emt 0:00:12]} Nh5 {[%emt 0:00:01] [#] White is slightly better.} 13. Ng3 $146 {[%emt 0:01:24]} ({Predecessor:} 13. Ne3 Qd8 14. Nd5 Ne7 15. dxe5 dxe5 16. Be3 Nxd5 17. exd5 f5 18. d6 Bc6 19. dxc7 Qxc7 {1-0 Sanchez Castillo,J (2103)-Montes de Oca Valerio,A (2184) DOM-ch Santo Domingo 2022 (7)}) 13... Nxg3 {[%emt 0:03:33]} 14. fxg3 {[%emt 0:00:02]} Qe7 {[%emt 0:01:23]} 15. Be3 {[%emt 0:02:14]} exd4 {[%emt 0:00:10]} 16. cxd4 {[%emt 0:00:12]} Nb4 {[%emt 0:00:00]} 17. Bb3 {[%emt 0:02:27]} c5 {[%emt 0:00:04]} 18. Qd2 {[%emt 0:00:09]} Kh7 {[%emt 0:00:41]} 19. a3 {[%emt 0:04:26]} (19. Bf4 $5 {[%cal Rd4c5]} Bb5 20. dxc5 dxc5 21. Bd6 $16) 19... Nc6 {[%emt 0:00:09]} 20. Rad1 {[%emt 0:00:01] dxc5 would be deadly.} cxd4 {[%emt 0:01:05]} 21. Nxd4 {[%emt 0:00:02]} Ne5 {[%emt 0:00:01]} 22. Bd5 {[%emt 0:00:07]} Rab8 {[%emt 0:03:15]} 23. g4 {[%emt 0:00:08][%cal Bg3g4,Bg4g5][%mdl 32]} Rfc8 {[%emt 0:00:15]} 24. g5 {[%emt 0:00:14][%cal Rg5h6]} h5 {[%emt 0:00:10]} 25. Rc1 {[%emt 0:00:31]} Qd8 {[%emt 0:00:24]} (25... Bc6 {simplifies} 26. Bf2 Bxd5 27. exd5 Qd8) 26. Ne2 {[%emt 0:00:28] [#]} (26. b4 $11) 26... Bxh3 $1 $17 {[%emt 0:00:09][%mdl 576] Deflection} 27. Ba7 {[%emt 0:00:31][%cal Oa7b8]} (27. Nf4 Bd7) 27... Ra8 {[%emt 0:00:08]} 28. Bd4 {[%emt 0:00:02] Black must now prevent Bxe5.} Bg4 {[%emt 0:00:10]} 29. Rf1 {[%emt 0:00:15] [#]} (29. Bxb7 $15 Rxc1 30. Nxc1) 29... Rxc1 {[%emt 0:00:03]} ({Black should play} 29... Bxe2 $1 $19 30. Qxe2 (30. Rxc8 $2 Rxc8 31. Qxe2 Nf3+ {[%mdl 64] Discovered Attack} 32. Qxf3 Bxd4+ 33. Kh2 Qxg5 $19) 30... Nf3+ {[%mdl 64] Discovered Attack} 31. Qxf3 Bxd4+ 32. Kh1 Rxc1 33. Rxc1 Qxg5) 30. Nxc1 {[%emt 0:00:01] [#]} Rc8 {[%emt 0:00:10]} (30... Be6 $1 $17 {aiming for ...Bxd5.} 31. Bxb7 Bc4 32. Bxa8 Bxf1) 31. Nd3 {[%emt 0:00:04] [#]} (31. Bxe5 $11 {remains equal.} dxe5 32. Rxf7) 31... Nf3+ $1 {[%emt 0:00:09][%mdl 576] Discovered Attack} 32. gxf3 {[%emt 0:00:01]} Bxd4+ {[%emt 0:00:00]} 33. Nf2 $2 {[%emt 0:00:07]} (33. Kg2 $17 Be6 34. Bxe6 (34. Bxb7 $2 {perishes.} Rb8 $19) 34... fxe6 35. Rc1) 33... Bh3 {[%emt 0:00:25][%cal Oc8c2,Bg4h3,Bh3g2,Bg2f3][%mdl 32] Strongly threatening ...Rc2!} 34. Rd1 $2 {[%emt 0:00:02] [#]} (34. Rc1 Rxc1+ 35. Qxc1) 34... Rc2 $3 $19 {[%emt 0:00:08][%mdl 576] Skewer, Deflection, Double Attack} 35. Qf4 {[%emt 0:00:04]} (35. f4 Bxf2+) 35... Bxf2+ {[%emt 0:00:06] This pair of bishops is nice.} 36. Kh1 {[%emt 0:00:00]} Qe7 {[%emt 0:00:05][%cal Oh3g2]} (36... Rxb2 $2 37. Qxf7+ Kh8 38. Qxg6 $18) 37. Bxf7 {[%emt 0:00:05]} Bc5 {[%emt 0:00:06] ( -> ...Bg2+)} 38. Bd5 {[%emt 0:00:03]} Bg2+ {[%emt 0:00:01] Black mates.} 39. Kh2 {[%emt 0:00:01]} Bxf3+ {[%emt 0:00:00]} 40. Rd2 {[%emt 0:00:03]} Qe5 {[%emt 0:00:04] Ingenious play by Sevian!   Weighted Error Value: White=1.09/Black=0.37} 0-1

[Event "AI Cup Div-3 2023"]
[Site "Online"]
[Date "2023.09.28"]
[Round "57.2"]
[White "Sevian, Samuel"]
[Black "Robson, Ray"]
[Result "0-1"]
[Annotator "TA"]
[ECO "D05"]
[WhiteElo "2698"]
[BlackElo "2699"]
[PlyCount "132"]
[EventDate "2023.09.18"]
[EventType "k.o."]
[EventCountry "NET"]
[SourceTitle "playchess.com"]
[Source "ChessBase"]
[SourceQuality "1"]
[TimeControl "900+3"]

{[%evp 9,132,0,0,10,47,0,10,-14,-18,-20,20,-9,0,-11,-18,-49,-44,-66,-23,-131,-129,-129,-131,-135,-134,-136,-135,-172,-159,-257,-254,-247,-219,-243,-197,-201,-195,-191,-189,-178,0,-170,0,-200,-183,-195,-194,-185,-143,-148,-120,-150,-155,-213,-218,-739,-159,-154,-147,-158,-151,-226,-46,-237,-229,-229,-229,-229,-162,-201,-174,-162,-161,-228,-228,-215,-202,-236,-241,-225,-214,-293,-293,-287,-271,-271,-271,-271,-271,-271,-271,-271,-259,-463,-352,-336,-297,-2686,-2561,-2080,-2171,-424,-96,-89,-89,-12835,-12835,-12836,-12833,-6428,0,-12836,-12836,-12837,-12837,-12837,-12836,-12840,-12840,-12842,-12842,-12844,-12845,-12845,-12845]} 1. d4 {[%emt 0:00:03]} Nf6 {[%emt 0:01:19]} 2. Nf3 {[%emt 0:00:02]} d5 {[%emt 0:00:10]} 3. c3 {[%emt 0:00:44]} c5 {[%emt 0:00:24]} 4. e3 {[%emt 0:00:47]} b6 {[%emt 0:01:04] [#]} 5. c4 $146 {[%emt 0:02:39]} ({Predecessor:} 5. Bb5+ Bd7 6. Bd3 g6 7. Nbd2 Bg7 8. Qe2 O-O 9. dxc5 bxc5 10. e4 e6 11. e5 Ne8 12. O-O Nc6 13. Re1 {½-½ Jasny,S (2299)-Mannion,S (2271) Marianske Lazne IM-B3 20th 2022 (2)}) 5... cxd4 {[%emt 0:01:28]} 6. exd4 {[%emt 0:01:03] D05: Colle System with ...e6.} g6 {[%emt 0:00:03]} 7. Nc3 {[%emt 0:00:25] Threatening cxd5.} Bg7 {[%emt 0:00:08]} 8. Bg5 {[%emt 0:00:10] The position is equal.} O-O {[%emt 0:00:17]} 9. Bxf6 {[%emt 0:00:15]} Bxf6 {[%emt 0:00:03]} 10. cxd5 {[%emt 0:01:14]} Na6 {[%emt 0:02:15]} 11. Bc4 {[%emt 0:00:39]} Nc7 {[%emt 0:00:05]} 12. h3 {[%emt 0:00:32]} Bb7 {[%emt 0:01:09]} 13. Qb3 {[%emt 0:00:13]} b5 {[%emt 0:00:05]} 14. Bxb5 {[%emt 0:00:30]} (14. Nxb5 $11 Nxd5 15. O-O) 14... Rb8 $1 $17 {[%emt 0:00:51][%cal Rc7d5]} 15. Be2 {[%emt 0:03:44]} Nxd5 {[%emt 0:00:38]} (15... Bxd5 16. Qa3) 16. Nxd5 {[%emt 0:00:18]} Bxd5 {[%emt 0:00:07]} 17. Qa3 {[%emt 0:00:05]} Qb6 {[%emt 0:01:58][%csl LRb2,LRd4] Black is more active.} 18. Rb1 {[%emt 0:01:04]} Be4 {[%emt 0:01:07] A strong pair of Bishops.} 19. Bd3 {[%emt 0:00:03]} (19. Rd1 $17) 19... Bxf3 $19 {[%emt 0:00:19]} 20. gxf3 {[%emt 0:00:00]} Qxd4 {[%emt 0:00:27] Threatens to win with ...Qh4.} 21. Be4 {[%emt 0:00:13] White is weak on the dark squares} Rb5 {[%emt 0:01:40]} (21... Rxb2 22. Rxb2 Qxb2 23. Qxb2 Bxb2 24. Ke2 $17) 22. Qe3 {[%emt 0:00:30]} Qa4 {[%emt 0:00:19]} (22... Rxb2 23. Qxd4 Rxb1+ 24. Bxb1) 23. Qa3 {[%emt 0:00:32]} Qc4 {[%emt 0:00:12] ...Rd8 is the strong threat.} 24. Qd3 {[%emt 0:00:01] Prevents Rd8} Qa4 {[%emt 0:00:04]} 25. Qa3 $1 {[%emt 0:00:01]} Qd4 {[%emt 0:00:02]} 26. Qe3 $1 {[%emt 0:00:02]} Qd7 {[%emt 0:00:03]} 27. Rd1 {[%emt 0:00:10]} Qc7 {[%emt 0:00:04]} 28. b3 {[%emt 0:00:03]} Bg5 {[%emt 0:00:03]} 29. Qd3 {[%emt 0:00:10]} Rc5 {[%emt 0:00:00]} 30. Kf1 {[%emt 0:00:02]} e6 {[%emt 0:00:06]} 31. Qd6 {[%emt 0:00:09]} (31. Qe2 $17) 31... Qa5 {[%emt 0:00:02] ...Rd8 would be deadly.} 32. h4 $2 {[%emt 0:00:04]} (32. Kg2) 32... Bf6 $2 {[%emt 0:00:03]} (32... Rd8 $19 {and Black stays clearly on top.} 33. Qxd8+ Bxd8) 33. Kg2 {[%emt 0:00:04]} Rh5 {[%emt 0:00:02]} 34. a4 {[%emt 0:00:05]} Bxh4 {[%emt 0:00:02] Hoping for ...Rd8.} 35. f4 {[%emt 0:00:01]} (35. Qd2 $17 {might work better.} Qc7 36. Rc1) 35... Bf6 $2 {[%emt 0:00:05]} (35... Rd8 $19 36. b4 Rxd6 37. bxa5 Rxd1 38. Rxd1 Rxa5) 36. Bf3 $2 {[%emt 0:00:05]} ({Better is} 36. b4 $1 $15 Qxa4 37. Rxh5 gxh5 38. f5) 36... Rxh1 {[%emt 0:00:03]} 37. Rxh1 {[%emt 0:00:01]} Rd8 {[%emt 0:00:01]} 38. Qc6 {[%emt 0:00:05]} Qb4 {[%emt 0:00:04]} 39. Qc4 {[%emt 0:00:06]} Qxc4 {[%emt 0:00:02]} 40. bxc4 {[%emt 0:00:00][%mdl 4096] Endgame KRB-KRB} Rd4 {[%emt 0:00:01]} 41. Rc1 {[%emt 0:00:01]} (41. f5 {was necessary.}) 41... Rxf4 {[%emt 0:00:02]} 42. c5 {[%emt 0:00:02]} Bd8 {[%emt 0:00:07]} (42... Rxa4 43. c6 Be5 44. c7 Bxc7 45. Rxc7 $15) 43. Rd1 {[%emt 0:00:02]} Ba5 {[%emt 0:00:04]} 44. Rd7 {[%emt 0:00:06]} Rc4 {[%emt 0:00:01]} (44... Rxa4 45. Rxa7 Kf8 46. c6 $18) 45. c6 {[%emt 0:00:02]} Bb6 {[%emt 0:00:01]} ({Resist} 45... Rxa4 46. Rxa7 Kg7 47. Ra8 $18) 46. a5 {[%emt 0:00:01]} Bxa5 {[%emt 0:00:03]} 47. Rxa7 {[%emt 0:00:01] [#]} Rc5 {[%emt 0:00:02]} 48. Bd1 {[%emt 0:00:08]} Kg7 {[%emt 0:00:02]} 49. Ba4 {[%emt 0:00:02]} Kf6 {[%emt 0:00:06]} 50. Rb7 {[%emt 0:00:02]} h5 {[%emt 0:00:04]} 51. f4 $2 {[%emt 0:00:07]} (51. Rb5 Rxb5 52. Bxb5) 51... Rc4 {[%emt 0:00:02]} 52. Bb5 {[%emt 0:00:00]} Rb4 {[%emt 0:00:05][%cal Oa5c7] Strongly threatening ...Bc7!} ({Stronger than} 52... Rxf4 53. Ra7 Bb6 54. Rb7 $15) 53. Bd3 $2 {[%emt 0:00:09]} (53. Ba6 Ra4 54. Bd3 Ra2+ 55. Kg1) 53... Rxb7 {[%emt 0:00:03][%mdl 64] Remove Defender} ({Worse is} 53... Rxf4 54. Ra7 Rg4+ 55. Kf3 $17) 54. cxb7 {[%emt 0:00:00] KB-KB} Bc7 {[%emt 0:00:01]} 55. Kf3 {[%emt 0:00:01]} g5 $2 {[%emt 0:00:05]} (55... Bb8 $19 {has better winning chances.} 56. Ke4 Ke7) 56. fxg5+ $17 {[%emt 0:00:02]} Kxg5 {[%emt 0:00:00]} 57. Bb5 $2 {[%emt 0:00:05][%mdl 8192]} (57. Bc4 $17) 57... f5 {[%emt 0:00:03]} 58. Ke3 {[%emt 0:00:04]} Kg4 {[%emt 0:00:05]} 59. Be2+ {[%emt 0:00:02] [#]} Kg5 $2 {[%emt 0:00:01]} (59... Kh4 $1 $19 {[%cal Rh4g5]} 60. Bf3 Bd6) 60. Bf1 $2 {[%emt 0:00:05][%mdl 8192]} (60. Bb5 $11 e5 61. Kf2) 60... e5 $19 {[%emt 0:00:04][%cal Be6e5,Be5e4,Be4e3][%mdl 32] Black is clearly winning.} 61. Bh3 {[%emt 0:00:03]} Bb6+ {[%emt 0:00:05]} 62. Kd3 {[%emt 0:00:02]} Ba7 {[%emt 0:00:03]} 63. Kc4 {[%emt 0:00:02]} e4 {[%emt 0:00:04]} 64. Kd5 {[%emt 0:00:00]} Kf4 {[%emt 0:00:03]} 65. Ke6 {[%emt 0:00:04]} e3 {[%emt 0:00:01]} 66. Bf1 {[%emt 0:00:01]} h4 {[%emt 0:00:03] Weighted Error Value: White=0.70/Black=0.44} 0-1